bitfinex/quotes_SOLUSD_20240624
["timestamp","ask_amount","ask_price","bid_price","bid_amount"]
[1719217934351,18.48652194,126.25,126.15,45.17]
[1719217934527,18.48652194,126.25,126.16,45.0]
[1719217934928,18.48652194,126.25,126.17,7.9256]
[1719217935155,15.564,126.25,126.14,26.4967]
[1719217935326,15.564,126.25,126.17,7.9252]
[1719217935645,15.564,126.25,126.18,7.9249]
[1719217935823,15.564,126.25,126.16,0.17]
[1719217936031,15.564,126.25,126.19,7.9245]
[1719217936448,15.564,126.25,126.18,7.925]
[1719217936649,15.564,126.25,126.16,8.096]
[1719217936952,15.564,126.25,126.17,45.0]
[1719217937160,15.564,126.25,126.18,7.9249]
[1719217937451,15.564,126.25,126.15,1.83373207]
[1719217937628,2.92252194,126.24,126.16,7.9263]
[1719217937934,2.92252194,126.24,126.16,7.9264]
[1719217938341,2.92252194,126.24,126.15,7.9267]
[1719217938647,2.92252194,126.24,126.16,7.9264]
[1719217938851,2.92252194,126.24,126.17,7.9255]
[1719217939050,2.92252194,126.24,126.11,21.3005]
[1719217939347,15.564,126.25,126.18,7.9249]
[1719217939742,15.564,126.25,126.17,7.9256]
[1719217939939,15.564,126.25,126.17,23.4896]
[1719217940149,18.48652194,126.25,126.17,15.564]
[1719217940360,18.48652194,126.25,126.12,61.47796826]
[1719217940556,15.564,126.25,126.13,47.17402284]
[1719217940855,15.564,126.25,126.19,7.9243]
[1719217941058,15.564,126.25,126.17,19.8132]
[1719217941268,15.564,126.25,126.21,7.9229]
[1719217941430,15.564,126.25,126.2,7.9236]
[1719217941927,15.564,126.25,126.21,7.9232]
[1719217942551,15.564,126.25,126.2,7.9236]
[1719217942931,15.564,126.25,126.19,7.9242]
[1719217943548,15.564,126.25,126.2,7.9238]
[1719217943742,15.564,126.25,126.21,7.9231]
[1719217944144,15.564,126.25,126.22,7.9226]
[1719217944349,15.564,126.25,126.21,7.9231]
[1719217945235,15.564,126.25,126.18,45.0]
[1719217945443,15.564,126.25,126.17,7.9256]
[1719217945746,15.564,126.25,126.14,24.06547744]
[1719217945954,15.564,126.25,126.17,7.9255]
[1719217946549,15.564,126.25,126.14,43.88337744]
[1719217946867,15.564,126.25,126.17,7.9252]
[1719217947192,15.564,126.25,126.18,7.9251]
[1719217947540,2.92252194,126.24,126.17,7.9255]
[1719217947744,2.92252194,126.24,126.16,7.9262]
[1719217948361,2.92252194,126.24,126.17,7.9256]
[1719217948562,2.92252194,126.24,126.16,7.9262]
[1719217948867,15.564,126.25,126.19,7.9245]
[1719217949163,15.564,126.25,126.18,7.925]
[1719217949462,15.564,126.25,126.2,19.8091]
[1719217949756,15.564,126.25,126.21,7.9227]
[1719217949943,15.564,126.25,126.2,7.9236]
[1719217950143,15.564,126.25,126.21,7.9231]
[1719217950344,15.564,126.25,126.23,7.9219]
[1719217950562,15.564,126.25,126.22,7.9224]
[1719217950740,0.856458,126.28,126.21,19.808]
[1719217951140,0.856458,126.28,126.23,7.9215]
[1719217951461,0.356458,126.28,126.22,7.9225]
[1719217951663,3.27897994,126.28,126.19,7.9242]
[1719217952258,18.238,126.27,126.18,7.9251]
[1719217952459,2.92252194,126.26,126.18,7.9251]
[1719217952655,2.92252194,126.26,126.17,7.9255]
[1719217952848,2.92252194,126.26,126.18,7.925]
[1719217954848,2.92252194,126.26,126.17,7.9256]
[1719217956866,2.92252194,126.26,126.16,7.9263]
[1719217957053,16.169,126.25,126.14,1.83387744]
[1719217957250,2.92252194,126.24,126.16,7.9263]
[1719217957450,2.92252194,126.24,126.17,7.9254]
[1719217957773,2.92252194,126.24,126.14,1.83387744]
[1719217957949,2.92252194,126.24,126.16,7.926]
[1719217958154,16.169,126.25,126.15,19.8174]
[1719217958357,2.92252194,126.24,126.17,7.9253]
[1719217958550,16.169,126.25,126.17,7.9253]
[1719217958873,16.169,126.25,126.19,7.9242]
[1719217959775,16.169,126.25,126.19,7.9241]
[1719217959968,16.169,126.25,126.16,45.0]
[1719217959969,16.169,126.25,126.18,7.9249]
[1719217961076,16.169,126.25,126.16,52.9264]
[1719217961274,15.8739,126.23,126.14,1.83387744]
[1719217961476,17.939,126.21,126.14,1.83387744]
[1719217961678,2.92252194,126.2,126.1,7.93]
[1719217961976,15.8739,126.19,126.11,19.8251]
[1719217962156,2.92252194,126.18,126.11,27.7545]
[1719217962359,2.92252194,126.18,126.11,19.8251]
[1719217962558,2.92252194,126.18,126.11,27.7543]
[1719217962767,2.0651,126.17,126.09,7.9306]
[1719217963162,2.0651,126.17,126.09,23.8045]
[1719217963375,2.92252194,126.16,126.09,7.9304]
[1719217963958,2.0651,126.17,126.07,19.8301]
[1719217964289,2.0651,126.17,126.08,7.9312]
[1719217964460,2.0651,126.17,126.06,31.73]
[1719217964664,2.0651,126.17,126.09,7.9308]
[1719217965563,2.0651,126.17,126.06,31.73]
[1719217965766,2.0651,126.17,126.07,2.0048957]
[1719217965967,2.0651,126.17,126.11,7.9291]
[1719217966178,2.0651,126.17,126.12,7.9289]
[1719217966369,2.0651,126.17,126.14,7.9274]
[1719217966564,2.0651,126.17,126.09,19.8269]
[1719217966776,15.8739,126.19,126.07,86.8328957]
[1719217966777,15.8739,126.19,126.15,7.9267]
[1719217966962,15.8739,126.19,126.11,19.8237]
[1719217967177,15.8739,126.19,126.14,7.9274]
[1719217967380,15.8739,126.19,126.11,19.8237]
[1719217967381,15.8739,126.19,126.13,7.928]
[1719217967875,15.8739,126.19,126.09,19.8269]
[1719217968078,15.8739,126.19,126.13,7.9279]
[1719217968270,15.8739,126.19,126.16,7.9262]
[1719217968481,15.8739,126.19,126.12,0.34]
[1719217968666,15.8152,126.22,126.13,0.34]
[1719217968986,15.8152,126.22,126.13,22.5242]
[1719217969174,15.8152,126.22,126.19,7.9243]
[1719217969360,15.8152,126.22,126.18,7.9249]
[1719217969775,15.8152,126.22,126.17,7.9255]
[1719217970191,15.8152,126.22,126.18,7.9251]
[1719217970366,15.8152,126.22,126.15,19.8173]
[1719217970567,15.8152,126.22,126.17,7.9255]
[1719217970786,15.8152,126.22,126.16,7.9262]
[1719217970968,15.8152,126.22,126.17,7.9257]
[1719217971181,15.8152,126.22,126.13,42.3447]
[1719217971510,15.8152,126.22,126.13,7.9279]
[1719217971670,1.9117,126.2,126.12,7.9286]
[1719217971869,1.9117,126.2,126.12,19.8219]
[1719217972176,1.9117,126.2,126.15,7.9266]
[1719217972375,1.9117,126.2,126.11,19.8239]
[1719217972376,1.9117,126.2,126.14,7.9276]
[1719217972966,1.9117,126.2,126.15,7.9269]
[1719217973807,1.9117,126.2,126.16,7.9264]
[1719217974604,2.92252194,126.21,126.1,6.0542]
[1719217974790,2.92252194,126.21,126.12,7.9283]
[1719217975094,2.92252194,126.21,126.11,7.9292]
[1719217975400,2.92252194,126.21,126.12,7.9289]
[1719217975779,2.92252194,126.2,126.09,15.6093]
[1719217976016,2.92252194,126.2,126.11,7.9295]
[1719217976301,17.1243,126.19,126.11,7.9295]
[1719217976608,17.1243,126.19,126.12,7.9287]
[1719217976971,17.1243,126.19,126.11,7.9295]
[1719217977507,17.1243,126.19,126.11,7.9293]
[1719217977873,17.1243,126.19,126.12,7.9287]
[1719217978479,17.1243,126.19,126.14,7.9273]
[1719217978797,17.1243,126.19,126.12,7.9286]
[1719217979567,17.1243,126.19,126.13,7.9281]
[1719217980503,17.1243,126.19,126.11,45.0]
[1719217980684,17.1243,126.19,126.11,7.9294]
[1719217981690,2.92252194,126.18,126.1,31.772137]
[1719217981893,16.4085,126.17,126.08,7.9312]
[1719217982104,2.92252194,126.16,126.09,17.1243]
[1719217982480,2.92252194,126.16,126.09,7.9304]
[1719217982702,2.92252194,126.16,126.09,16.4085]
[1719217982899,2.92252194,126.16,126.09,24.3392]
[1719217983213,16.4085,126.17,126.1,7.93]
[1719217983507,16.4085,126.17,126.11,7.9292]
[1719217984079,16.4085,126.17,126.12,7.9289]
[1719217984791,16.4085,126.17,126.1,7.9299]
[1719217985014,16.4085,126.17,126.09,36.2344]
[1719217985213,16.4085,126.17,126.12,7.9288]
[1719217986298,16.4085,126.17,126.1,45.0]
[1719217986507,16.4085,126.17,126.11,7.9293]
[1719217986810,16.4085,126.17,126.12,7.9287]
[1719217987120,16.4085,126.17,126.09,24.339]
[1719217987335,2.92252194,126.16,126.09,16.4085]
[1719217987616,16.4085,126.17,126.09,16.4085]
[1719217988216,16.4085,126.17,126.12,7.9289]
[1719217988388,16.4085,126.17,126.11,7.9292]
[1719217988822,16.4085,126.17,126.1,19.8254]
[1719217988999,16.4085,126.17,126.13,7.9279]
[1719217989589,16.4085,126.17,126.12,7.9287]
[1719217989807,16.4085,126.17,126.11,45.0]
[1719217990120,16.4085,126.17,126.12,7.9288]
[1719217990616,16.4085,126.17,126.13,7.9282]
[1719217990925,15.081,126.2,126.11,45.0]
[1719217991207,15.081,126.2,126.16,7.9261]
[1719217991690,15.081,126.2,126.18,7.9251]
[1719217992306,1.9117,126.22,126.18,7.9251]
[1719217993189,1.9117,126.22,126.17,23.0066]
[1719217993394,1.9117,126.22,126.17,23.0067]
[1719217993609,15.453,126.23,126.18,7.9246]
[1719217993903,15.453,126.23,126.19,7.9242]
[1719217994607,15.453,126.23,126.18,23.3779]
[1719217995309,15.453,126.23,126.19,7.9243]
[1719217995711,15.453,126.23,126.18,15.453]
[1719217995903,15.453,126.23,126.19,7.9242]
[1719217997108,15.453,126.23,126.18,15.453]
[1719217998111,15.453,126.23,126.18,23.3779]
[1719217998407,15.453,126.23,126.19,7.9245]
[1719217998910,2.92252194,126.22,126.15,7.9267]
[1719217999115,15.453,126.23,126.16,7.9264]
[1719217999317,2.92252194,126.22,126.16,7.9264]
[1719217999620,2.92252194,126.22,126.16,15.453]
[1719217999913,2.92252194,126.22,126.16,7.9263]
[1719218000104,2.92252194,126.22,126.15,23.3799]
[1719218000514,1.9117,126.21,126.1,19.824]
[1719218000815,1.9117,126.21,126.14,23.3803]
[1719218001026,2.92252194,126.22,126.14,23.3803]
[1719218001194,15.453,126.23,126.18,7.9249]
[1719218001612,15.453,126.23,126.19,7.9244]
[1719218002197,15.453,126.23,126.18,7.9251]
[1719218002492,15.453,126.23,126.2,7.9237]
[1719218004801,15.453,126.23,126.19,7.9242]
[1719218005197,15.453,126.23,126.2,7.9239]
[1719218006524,15.453,126.23,126.18,7.9245]
[1719218006914,15.453,126.23,126.19,7.9243]
[1719218007419,15.453,126.23,126.2,7.9238]
[1719218008215,15.453,126.23,126.21,7.9232]
[1719218008618,15.453,126.23,126.2,7.9236]
[1719218009516,15.453,126.23,126.19,7.9242]
[1719218009905,15.453,126.23,126.19,7.924]
[1719218010102,15.453,126.23,126.19,7.9243]
[1719218010307,15.453,126.23,126.2,7.9237]
[1719218011105,17.722,126.26,126.19,19.8113]
[1719218011305,0.356458,126.28,126.2,45.17]
[1719218011511,0.356458,126.28,126.24,7.921]
[1719218012024,0.356458,126.28,126.21,15.453]
[1719218012230,1.9117,126.26,126.21,15.453]
[1719218012525,1.9117,126.26,126.16,7.9262]
[1719218012526,27.18,126.25,126.16,7.9262]
[1719218012704,15.575,126.24,126.16,24.1123]
[1719218013122,2.92252194,126.23,126.16,24.1123]
[1719218014528,1.9117,126.22,126.14,7.9273]
[1719218014833,1.9117,126.22,126.15,7.9269]
[1719218016935,1.9117,126.22,126.16,7.9262]
[1719218017265,1.9117,126.22,126.19,7.924]
[1719218017535,15.575,126.24,126.19,7.924]
[1719218017909,15.575,126.24,126.18,7.9251]
[1719218018139,15.575,126.24,126.15,0.17]
[1719218018308,18.49752194,126.24,126.17,7.9254]
[1719218018858,18.49752194,126.24,126.17,7.9256]
[1719218019563,2.92252194,126.23,126.14,32.0394]
[1719218020360,2.92252194,126.23,126.15,7.9269]
[1719218021430,2.92252194,126.23,126.16,7.9263]
[1719218022156,2.92252194,126.23,126.15,7.9269]
[1719218022335,2.92252194,126.23,126.14,32.0398]
[1719218022529,2.92252194,126.23,126.14,7.9275]
[1719218022845,2.92252194,126.23,126.15,7.9265]
[1719218023046,2.92252194,126.23,126.14,15.575]
[1719218023047,15.575,126.24,126.16,7.9261]
[1719218023252,18.49752194,126.24,126.16,7.9261]
[1719218023429,18.49752194,126.24,126.17,7.9255]
[1719218023636,18.49752194,126.24,126.16,7.9263]
[1719218024351,15.575,126.24,126.14,35.393]
[1719218024545,15.575,126.24,126.16,19.8157]
[1719218024847,15.575,126.24,126.17,45.0]
[1719218025946,15.575,126.24,126.2,7.9234]
[1719218027551,15.575,126.24,126.19,7.9242]
[1719218027740,15.575,126.24,126.2,7.9237]
[1719218029457,15.575,126.24,126.19,7.9245]
[1719218030872,15.575,126.24,126.17,45.0]
[1719218031038,15.575,126.24,126.16,45.0]
[1719218031238,15.575,126.24,126.16,7.926]
[1719218031638,15.575,126.24,126.17,7.9254]
[1719218032272,15.575,126.24,126.18,7.9251]
[1719218033146,15.575,126.24,126.15,19.8166]
[1719218033355,2.92252194,126.23,126.16,7.926]
[1719218033570,15.575,126.24,126.14,15.575]
[1719218034052,2.92252194,126.23,126.14,35.393]
[1719218034247,2.92252194,126.23,126.14,15.575]
[1719218034454,2.92252194,126.23,126.16,7.926]
[1719218034971,15.575,126.24,126.15,19.8163]
[1719218035169,15.575,126.24,126.18,7.9249]
[1719218035373,15.575,126.24,126.17,7.9255]
[1719218036090,2.92252194,126.23,126.14,23.5024]
[1719218036250,2.92252194,126.23,126.15,7.927]
[1719218036451,2.92252194,126.23,126.15,7.9266]
[1719218036666,2.92252194,126.23,126.14,23.5025]
[1719218037049,15.2792,126.22,126.14,23.5025]
[1719218037257,2.92252194,126.21,126.14,15.575]
[1719218037461,2.92252194,126.21,126.09,15.86510257]
[1719218037462,4.83422194,126.2,126.12,7.9283]
[1719218037866,4.83422194,126.2,126.1,31.771233]
[1719218037867,15.2792,126.19,126.1,31.771233]
[1719218038061,2.92252194,126.18,126.12,7.9288]
[1719218038263,2.92252194,126.18,126.11,7.9292]
[1719218038459,18.20172194,126.19,126.12,7.9283]
[1719218038661,15.2792,126.19,126.13,7.9282]
[1719218039457,30.0,126.17,126.13,7.9282]
[1719218039663,30.0,126.17,126.16,7.9264]
[1719218040063,17.711,126.27,126.2,7.9237]
[1719218040262,2.92252194,126.26,126.16,0.17]
[1719218040471,2.92252194,126.26,126.19,7.9241]
[1719218041374,2.92252194,126.26,126.18,7.9249]
[1719218042087,2.92252194,126.26,126.18,7.925]
[1719218042591,2.92252194,126.26,126.14,6.3829]
[1719218042761,15.1806,126.25,126.15,45.17]
[1719218042960,2.92252194,126.24,126.17,7.9256]
[1719218043382,2.92252194,126.24,126.16,7.9261]
[1719218043591,2.92252194,126.24,126.17,7.9257]
[1719218043880,15.1806,126.25,126.18,7.925]
[1719218044581,2.92252194,126.24,126.17,7.9256]
[1719218044799,2.92252194,126.24,126.16,7.9262]
[1719218045181,2.92252194,126.24,126.15,52.9268]
[1719218045354,2.92252194,126.24,126.15,7.9268]
[1719218045560,2.92252194,126.24,126.17,7.9257]
[1719218046064,2.92252194,126.24,126.16,7.9259]
[1719218046272,2.92252194,126.24,126.17,7.9254]
[1719218046668,15.1806,126.25,126.16,19.816]
[1719218046884,15.1806,126.25,126.19,7.9244]
[1719218047383,15.1806,126.25,126.2,7.9238]
[1719218049486,15.1806,126.25,126.19,7.9242]
[1719218049695,15.1806,126.25,126.18,7.925]
[1719218051092,2.92252194,126.24,126.18,15.1806]
[1719218051399,2.92252194,126.24,126.16,7.9259]
[1719218051603,2.92252194,126.24,126.17,7.9256]
[1719218051895,2.92252194,126.24,126.17,23.1062]
[1719218052578,2.92252194,126.24,126.17,23.1063]
[1719218052778,2.92252194,126.24,126.17,15.1806]
[1719218053168,2.92252194,126.24,126.16,7.9261]
[1719218053370,2.92252194,126.24,126.17,23.1063]
[1719218053766,19.94592194,126.23,126.17,15.1806]
[1719218053982,15.1117,126.21,126.08,6.5273]
[1719218054172,2.92252194,126.2,126.12,27.7511]
[1719218054377,2.92252194,126.2,126.12,19.8223]
[1719218054570,2.92252194,126.2,126.12,7.9287]
[1719218055582,2.92252194,126.2,126.13,7.9283]
[1719218055891,16.2611,126.18,126.09,34.9373]
[1719218056062,16.2611,126.18,126.11,7.9294]
[1719218056263,16.2611,126.18,126.12,7.9286]
[1719218056567,16.2611,126.18,126.13,7.9281]
[1719218057368,16.2611,126.18,126.09,154.7652]
[1719218057563,1.9117,126.21,126.17,7.9258]
[1719218058077,1.9117,126.21,126.14,19.818]
[1719218058278,15.2327,126.22,126.19,7.9241]
[1719218058474,15.2327,126.22,126.18,7.9251]
[1719218058674,15.2327,126.22,126.19,7.9245]
[1719218058873,15.2327,126.22,126.16,19.8157]
[1719218059076,15.2327,126.22,126.17,45.0]
[1719218059275,15.2327,126.22,126.2,7.9235]
[1719218059878,17.0704,126.25,126.21,7.9233]
[1719218060081,17.0704,126.25,126.22,7.9223]
[1719218060280,15.1587,126.25,126.22,7.9223]
[1719218060774,18.660858,126.28,126.23,7.922]
[1719218061712,18.660858,126.28,126.2,17.0704]
[1719218061997,16.749158,126.28,126.24,7.9211]
[1719218062575,16.749158,126.28,126.23,7.9217]
[1719218063400,16.749158,126.28,126.22,7.9224]
[1719218063998,16.749158,126.28,126.23,7.922]
[1719218064201,16.749158,126.28,126.2,36.879]
[1719218064380,16.749158,126.28,126.23,7.9218]
[1719218065088,16.749158,126.28,126.2,17.0704]
[1719218066211,16.749158,126.28,126.22,7.9226]
[1719218066375,16.749158,126.28,126.21,7.923]
[1719218066695,16.749158,126.28,126.22,7.9224]
[1719218067817,2.92252194,126.27,126.17,6.4277]
[1719218067972,1.9117,126.26,126.19,7.9241]
[1719218068179,4.83422194,126.26,126.2,7.9239]
[1719218068377,4.83422194,126.26,126.19,7.9242]
[1719218068589,4.83422194,126.26,126.2,7.9237]
[1719218068875,4.83422194,126.26,126.19,7.9242]
[1719218069088,1.9117,126.26,126.19,7.9242]
[1719218069282,4.83422194,126.26,126.19,7.9242]
[1719218069484,4.83422194,126.26,126.2,7.9238]
[1719218070296,4.83422194,126.26,126.21,7.9232]
[1719218070297,1.9117,126.26,126.21,7.9232]
[1719218070503,4.83422194,126.26,126.2,7.9236]
[1719218070801,4.83422194,126.26,126.19,7.9243]
[1719218071385,4.83422194,126.26,126.17,19.8157]
[1719218071588,2.92252194,126.25,126.18,7.9248]
[1719218071800,15.4388,126.24,126.18,7.9248]
[1719218071997,2.92252194,126.23,126.18,7.9248]
[1719218072200,15.4388,126.24,126.18,7.9248]
[1719218072500,15.4388,126.24,126.18,7.925]
[1719218073196,15.4388,126.24,126.16,36.564158]
[1719218073497,15.4388,126.24,126.18,7.9248]
[1719218073690,15.4388,126.24,126.19,7.9245]
[1719218073913,15.4388,126.24,126.16,36.564158]
[1719218074088,15.4388,126.24,126.16,16.749158]
[1719218074403,15.4388,126.24,126.2,7.9235]
[1719218074992,15.4388,126.24,126.21,7.9229]
[1719218075402,15.4388,126.24,126.2,7.9238]
[1719218075809,15.4388,126.24,126.21,7.9232]
[1719218076288,15.4388,126.24,126.2,7.9236]
[1719218078800,15.4388,126.24,126.18,19.8118]
[1719218079003,15.4388,126.24,126.21,7.923]
[1719218080009,15.774558,126.28,126.21,7.923]
[1719218080389,15.774558,126.28,126.21,7.9229]
[1719218080589,15.774558,126.28,126.18,41.4108]
[1719218080802,15.774558,126.28,126.21,7.9229]
[1719218081110,2.92252194,126.27,126.21,7.9232]
[1719218081493,2.92252194,126.27,126.19,7.9242]
[1719218081693,2.92252194,126.26,126.19,7.9244]
[1719218082093,2.92252194,126.26,126.2,7.9239]
[1719218082819,2.92252194,126.27,126.2,7.9239]
[1719218083206,2.92252194,126.26,126.18,7.9246]
[1719218083718,2.92252194,126.26,126.19,7.9244]
[1719218084226,2.92252194,126.27,126.19,7.9244]
[1719218085906,2.92252194,126.27,126.2,7.9237]
[1719218086307,15.774558,126.28,126.2,7.9237]
[1719218086511,18.69707994,126.28,126.2,7.9237]
[1719218087099,18.69707994,126.28,126.19,7.9244]
[1719218087414,18.69707994,126.28,126.18,7.9249]
[1719218087913,18.69707994,126.28,126.19,7.9242]
[1719218088919,18.69707994,126.28,126.17,19.8133]
[1719218089088,18.69707994,126.28,126.19,7.9242]
[1719218094717,18.69707994,126.28,126.19,7.9244]
[1719218096711,9.06,126.23,126.19,7.9244]
[1719218097822,18.69707994,126.28,126.19,7.9244]
[1719218098018,9.06,126.23,126.16,51.701658]
[1719218098201,9.06,126.23,126.17,9.06]
[1719218098402,9.06,126.23,126.19,7.9241]
[1719218098606,18.69707994,126.28,126.19,7.9244]
[1719218098808,18.69707994,126.28,126.16,51.701658]
[1719218098809,30.0,126.22,126.17,9.06]
[1719218100027,39.06,126.22,126.17,9.06]
[1719218100320,39.06,126.22,126.19,7.9244]
[1719218100513,9.06,126.2,126.16,16.749158]
[1719218100697,46.4566,126.22,126.14,7.9273]
[1719218100698,9.06,126.17,126.14,7.9273]
[1719218100897,1.9117,126.17,126.1,1.83445916]
[1719218101122,1.9117,126.17,126.11,19.8186]
[1719218101123,9.06,126.15,126.11,19.8186]
[1719218101320,9.06,126.15,126.11,7.9293]
[1719218101628,1.9117,126.17,126.13,7.9283]
[1719218101809,9.06,126.15,126.12,7.9286]
[1719218102159,16.4566,126.18,126.12,9.06]
[1719218102295,25.5166,126.18,126.15,7.9266]
[1719218102501,30.0,126.19,126.18,7.9251]
[1719218102701,16.5327,126.22,126.18,7.9251]
[1719218102702,16.5327,126.22,126.18,16.9847]
[1719218102913,25.5927,126.22,126.17,9.06]
[1719218103130,9.06,126.21,126.17,7.9253]
[1719218103302,16.5327,126.22,126.17,7.9253]
[1719218103498,9.06,126.2,126.12,19.8223]
[1719218103813,9.06,126.19,126.14,9.06]
[1719218104003,9.06,126.19,126.15,7.9269]
[1719218104199,2.92252194,126.21,126.13,7.9278]
[1719218104407,2.92252194,126.2,126.13,7.9278]
[1719218104612,9.06,126.16,126.13,7.9278]
[1719218104840,2.92252194,126.2,126.15,7.9267]
[1719218105015,16.5327,126.22,126.1,67.07918116]
[1719218105016,16.5327,126.22,126.14,9.06]
[1719218105207,9.06,126.2,126.17,7.9258]
[1719218106007,9.06,126.2,126.18,7.925]
[1719218106205,9.06,126.2,126.17,7.9255]
[1719218107524,9.06,126.2,126.16,7.9261]
[1719218107722,9.06,126.2,126.14,7.9276]
[1719218107899,9.06,126.18,126.15,7.9269]
[1719218108103,9.06,126.18,126.12,19.8223]
[1719218108401,9.06,126.19,126.14,9.06]
[1719218108598,16.5327,126.22,126.13,39.6409]
[1719218108926,16.5327,126.22,126.15,19.8165]
[1719218109138,1.9117,126.24,126.16,19.8146]
[1719218109425,1.9117,126.24,126.18,7.9249]
[1719218110426,1.9117,126.24,126.19,7.9242]
[1719218110632,1.9117,126.24,126.2,7.9238]
[1719218110835,1.9117,126.24,126.19,7.9244]
[1719218111130,1.9117,126.24,126.16,65.156]
[1719218111351,1.9117,126.24,126.2,7.9239]
[1719218111922,16.0632,126.25,126.21,7.9231]
[1719218112711,27.19,126.29,126.21,7.9231]
[1719218112930,258.3,126.39,126.23,7.9214]
[1719218112931,10.0,126.38,126.23,7.9214]
[1719218113223,10.0,126.38,126.16,218.5429]
[1719218113224,6.42398538,126.37,126.25,7.9207]
[1719218113433,10.0,126.38,126.25,7.9207]
[1719218113934,10.856458,126.41,126.26,7.9201]
[1719218114114,10.856458,126.41,126.29,7.9182]
[1719218114115,0.856458,126.41,126.29,7.9182]
[1719218114425,7.22426623,126.41,126.3,1.58270417]
[1719218114932,7.22426623,126.41,126.3,9.50000417]
[1719218115127,7.22426623,126.41,126.31,7.917]
[1719218115316,0.856458,126.41,126.29,15.1373]
[1719218115517,0.856458,126.41,126.32,7.916]
[1719218115708,0.856458,126.41,126.29,34.9315]
[1719218115909,13.8848,126.4,126.31,7.9168]
[1719218116228,13.8848,126.4,126.29,34.9315]
[1719218116422,13.8848,126.4,126.31,19.7924]
[1719218116608,13.8848,126.4,126.33,7.9152]
[1719218116803,13.8848,126.4,126.29,34.9329]
[1719218117033,13.8848,126.4,126.33,7.9153]
[1719218117613,13.8848,126.4,126.29,34.9329]
[1719218117815,13.8848,126.4,126.33,7.9157]
[1719218118831,13.8848,126.4,126.33,7.9152]
[1719218119015,13.8848,126.4,126.29,34.9329]
[1719218119016,13.8848,126.4,126.34,7.915]
[1719218119533,13.8848,126.4,126.33,7.9155]
[1719218119862,13.8848,126.4,126.34,7.9151]
[1719218120014,13.8848,126.4,126.35,7.9144]
[1719218120213,0.856458,126.41,126.35,7.9144]
[1719218120534,0.856458,126.41,126.32,100.0]
[1719218120744,0.856458,126.41,126.35,27.19]
[1719218120920,0.856458,126.41,126.4,7.9113]
[1719218121425,0.856458,126.41,126.39,7.9118]
[1719218121611,0.856458,126.41,126.37,19.783]
[1719218121812,0.856458,126.41,126.39,7.9118]
[1719218122013,0.856458,126.41,126.4,7.9113]
[1719218123016,0.856458,126.41,126.4,52.9113]
[1719218123532,0.856458,126.41,126.4,7.9113]
[1719218124328,0.856458,126.41,126.4,59.0876]
[1719218124629,0.856458,126.41,126.4,59.2576]
[1719218125342,13.8848,126.51,126.46,7.9075]
[1719218125645,0.856458,126.54,126.48,7.9062]
[1719218125945,0.856458,126.54,126.46,7.9074]
[1719218126243,0.856458,126.54,126.47,14.7409]
[1719218126852,0.856458,126.54,126.44,7.9087]
[1719218127148,27.19,126.5,126.45,14.7409]
[1719218127458,0.856458,126.54,126.41,7.9102]
[1719218127459,0.856458,126.54,126.44,7.9084]
[1719218127621,0.856458,126.54,126.45,7.908]
[1719218128050,0.856458,126.54,126.46,7.9075]
[1719218128229,0.856458,126.54,126.45,7.9079]
[1719218128735,0.856458,126.54,126.42,34.5147]
[1719218128945,0.856458,126.54,126.43,45.0]